fUSD/lending_fUSD_20240623
["ID","MTS","AMOUNT","RATE_DAILY","PERIOD"]
[330194377,1719103849746,-821.93871,0.00019178,2]
[330194378,1719103849756,-621.191235,0.00019178,2]
[330194379,1719103849765,-821.93871,0.00019178,2]
[330194380,1719103849776,-621.191235,0.00019178,2]
[330194381,1719103849785,-151.0,0.00019178,2]
[330194382,1719103849795,-151.0,0.00019178,2]
[330194383,1719103849804,-151.0,0.00019178,2]
[330194384,1719103849813,-151.0,0.00019178,2]
[330194385,1719103849822,-151.0,0.00019178,2]
[330194386,1719103849831,-181.28861,0.00019178,2]
[330194387,1719103849840,-200.749225,0.00019178,2]
[330194388,1719103849849,-200.749225,0.00019178,2]
[330194389,1719103849858,-200.749225,0.00019178,2]
[330194390,1719103849867,-200.749225,0.00019178,2]
[330194391,1719103849876,-200.749225,0.00019178,2]
[330194392,1719103849885,-200.749225,0.00019178,2]
[330194393,1719103849894,-200.749225,0.00019178,2]
[330194394,1719103849904,-200.749225,0.00019178,2]
[330194395,1719103849913,-151.0,0.00019178,2]
[330194396,1719103849922,-151.0,0.00019178,2]
[330194397,1719103849934,-151.0,0.00019178,2]
[330194398,1719103849942,-151.0,0.00019178,2]
[330194399,1719103849951,-586.237885,0.00019178,2]
[330194400,1719103849961,-586.237885,0.00019178,2]
[330194401,1719103849970,-586.237885,0.00019178,2]
[330194402,1719103849979,-586.237885,0.00019178,2]
[330194403,1719103849989,-586.237885,0.00019178,2]
[330194404,1719103849999,-586.237885,0.00019178,2]
[330194405,1719103850008,-586.237885,0.00019178,2]
[330194406,1719103850019,-586.237885,0.00019178,2]
[330194407,1719103850029,-722.561294,0.00019178,2]
[330194408,1719103850040,-722.561294,0.00019178,2]
[330194409,1719103850050,-722.561294,0.00019178,2]
[330194410,1719103850059,-722.561294,0.00019178,2]
[330194411,1719103850069,-151.0,0.00019178,2]
[330194412,1719103850078,-151.0,0.00019178,2]
[330194413,1719103850087,-722.561294,0.00019178,2]
[330194414,1719103850097,-722.561294,0.00019178,2]
[330194415,1719103850106,-722.561294,0.00019178,2]
[330194416,1719103850115,-722.561294,0.00019178,2]
[330194417,1719103850125,-276.91589,0.00019178,2]
[330194418,1719103850134,-276.91589,0.00019178,2]
[330194419,1719103850143,-276.91589,0.00019178,2]
[330194420,1719103850152,-276.91589,0.00019178,2]
[330194421,1719103850162,-276.91589,0.00019178,2]
[330194422,1719103850172,-276.91589,0.00019178,2]
[330194423,1719103850183,-276.91589,0.00019178,2]
[330194424,1719103850192,-276.91589,0.00019178,2]
[330194425,1719103850201,-164.290368,0.00019178,2]
[330194426,1719103850210,-164.290368,0.00019178,2]
[330194427,1719103850220,-164.290368,0.00019178,2]
[330194428,1719103850230,-164.290368,0.00019178,2]
[330194429,1719103850239,-164.290368,0.00019178,2]
[330194430,1719103850251,-164.290368,0.00019178,2]
[330194431,1719103850261,-164.290368,0.00019178,2]
[330194432,1719103850270,-164.290368,0.00019178,2]
[330194433,1719103850280,-164.290368,0.00019178,2]
[330194434,1719103850291,-164.290374,0.00019178,2]
[330194435,1719103850301,-151.0,0.00019178,2]
[330194436,1719103850310,-151.0,0.00019178,2]
[330194437,1719103850320,-151.0,0.00019178,2]
[330194438,1719103850330,-151.0,0.00019178,2]
[330194439,1719103850341,-188.124087,0.00019178,2]
[330194440,1719103850352,-188.124087,0.00019178,2]
[330194441,1719103850361,-188.124087,0.00019178,2]
[330194442,1719103850371,-188.124087,0.00019178,2]
[330194443,1719103850380,-188.124087,0.00019178,2]
[330194444,1719103850390,-188.124087,0.00019178,2]
[330194445,1719103850401,-188.124087,0.00019178,2]
[330194446,1719103850411,-188.124094,0.00019178,2]
[330194447,1719103850420,-151.0,0.00019178,2]
[330194448,1719103850431,-191.676073,0.00019178,2]
[330194449,1719103850441,-151.0,0.00019178,2]
[330194450,1719103850451,-191.676073,0.00019178,2]
[330194451,1719103850460,-151.0,0.00019178,2]
[330194452,1719103850470,-191.676073,0.00019178,2]
[330194453,1719103850480,-205.166031,0.00019178,2]
[330194454,1719103850489,-191.676073,0.00019178,2]
[330194455,1719103850498,-191.676073,0.00019178,2]
[330194456,1719103850507,-191.676073,0.00019178,2]
[330194457,1719103850517,-191.676073,0.00019178,2]
[330194458,1719103850527,-191.676071,0.00019178,2]
[330194459,1719103850536,-1479.854237,0.00019178,2]
[330194460,1719103850546,-1479.854237,0.00019178,2]
[330194461,1719103850555,-1479.854237,0.00019178,2]
[330194462,1719103850564,-1479.854237,0.00019178,2]
[330194463,1719103850574,-1479.854237,0.00019178,2]
[330194464,1719103850584,-1479.854237,0.00019178,2]
[330194465,1719103850593,-1479.854237,0.00019178,2]
[330194466,1719103850603,-1479.854239,0.00019178,2]
[330194467,1719103850612,-151.0,0.00019178,2]
[330194468,1719103850621,-151.0,0.00019178,2]
[330194469,1719103850631,-151.0,0.00019178,2]
[330194470,1719103850640,-151.0,0.00019178,2]
[330194471,1719103850650,-182.940489,0.00019178,2]
[330194472,1719103850659,-182.940489,0.00019178,2]
[330194473,1719103850669,-182.940489,0.00019178,2]
[330194474,1719103850678,-182.940489,0.00019178,2]
[330194475,1719103850688,-182.940489,0.00019178,2]
[330194476,1719103850697,-182.940489,0.00019178,2]
[330194477,1719103850706,-182.940489,0.00019178,2]
[330194478,1719103850716,-182.940487,0.00019178,2]
[330194479,1719103850725,-2005.205732,0.00019178,2]
[330194480,1719103850735,-2005.205732,0.00019178,2]
[330194481,1719103850745,-2005.205732,0.00019178,2]
[330194482,1719103850755,-2005.205732,0.00019178,2]
[330194483,1719103850764,-2005.205732,0.00019178,2]
[330194484,1719103850774,-2005.205732,0.00019178,2]
[330194485,1719103850784,-2005.205732,0.00019178,2]
[330194486,1719103850794,-2005.205727,0.00019178,2]
[330194487,1719103850803,-152.595772,0.00019178,2]
[330194488,1719103850812,-152.595772,0.00019178,2]
[330194489,1719103850822,-152.595772,0.00019178,2]
[330194490,1719103850831,-152.595772,0.00019178,2]
[330194491,1719103850841,-152.595772,0.00019178,2]
[330194492,1719103850850,-152.595772,0.00019178,2]
[330194493,1719103850859,-152.595772,0.00019178,2]
[330194494,1719103850869,-152.595765,0.00019178,2]
[330194495,1719103850878,-151.0,0.00019178,2]
[330194496,1719103850888,-258.243269,0.00019178,2]
[330194497,1719103850897,-151.0,0.00019178,2]
[330194498,1719103850906,-151.0,0.00019178,2]
[330194499,1719103850916,-151.0,0.00019178,2]
[330194500,1719103850925,-616.779788,0.00019178,2]
[330194501,1719103850935,-616.779788,0.00019178,2]
[330194502,1719103850944,-616.779788,0.00019178,2]
[330194503,1719103850954,-616.779788,0.00019178,2]
[330194504,1719103850963,-616.779788,0.00019178,2]
[330194505,1719103850972,-616.779792,0.00019178,2]
[330194506,1719103850981,-350.314295,0.00019178,2]
[330194507,1719103850991,-350.314295,0.00019178,2]
[330194508,1719103850999,-350.314295,0.00019178,2]
[330194509,1719103851009,-350.314295,0.00019178,2]
[330194510,1719103851018,-350.314295,0.00019178,2]
[330194511,1719103851027,-350.31429,0.00019178,2]
[330194512,1719103851036,-151.0,0.00019178,2]
[330194513,1719103851046,-151.0,0.00019178,2]
[330194514,1719103851055,-151.0,0.00019178,2]
[330194515,1719103851064,-689.760074,0.00019178,2]
[330194516,1719103851073,-689.760074,0.00019178,2]
[330194517,1719103851082,-689.760074,0.00019178,2]
[330194518,1719103851091,-689.760074,0.00019178,2]
[330194519,1719103851100,-689.760074,0.00019178,2]
[330194520,1719103851110,-689.760065,0.00019178,2]
[330194521,1719103851119,-151.0,0.00019178,2]
[330194522,1719103851128,-151.0,0.00019178,2]
[330194523,1719103851138,-151.0,0.00019178,2]
[330194524,1719103851148,-151.0,0.00019178,2]
[330194525,1719103851157,-151.0,0.00019178,2]
[330194526,1719103851167,-151.0,0.00019178,2]
[330194527,1719103851177,-151.0,0.00019178,2]
[330194528,1719103851186,-726.576827,0.00019178,2]
[330194529,1719103851196,-726.576827,0.00019178,2]
[330194530,1719103851205,-726.576827,0.00019178,2]
[330194531,1719103851215,-726.576827,0.00019178,2]
[330194532,1719103851224,-726.576827,0.00019178,2]
[330194533,1719103851233,-726.576821,0.00019178,2]
[330194534,1719103851243,-151.0,0.00019178,2]
[330194535,1719103851256,-151.0,0.00019178,2]
[330194536,1719103851266,-151.0,0.00019178,2]
[330194537,1719103851275,-176.711053,0.00019178,2]
[330194538,1719103851285,-176.711053,0.00019178,2]
[330194539,1719103851295,-176.711053,0.00019178,2]
[330194540,1719103851304,-176.118831,0.00019178,2]
[330194541,1719103851313,-176.118831,0.00019178,2]
[330194542,1719103851323,-176.118831,0.00019178,2]
[330194543,1719103851334,-176.711053,0.00019178,2]
[330194544,1719103851343,-176.711053,0.00019178,2]
[330194545,1719103851352,-176.711053,0.00019178,2]
[330194546,1719103851361,-176.118831,0.00019178,2]
[330194547,1719103851371,-176.118831,0.00019178,2]
[330194548,1719103851380,-176.118836,0.00019178,2]
[330194549,1719103851389,-267.017675,0.00019178,2]
[330194550,1719103851400,-151.0,0.00019178,2]
[330194551,1719103851409,-151.0,0.00019178,2]
[330194552,1719103851421,-151.0,0.00019178,2]
[330194553,1719103851433,-151.0,0.00019178,2]
[330194554,1719103851442,-151.0,0.00019178,2]
[330194555,1719103851451,-151.0,0.00019178,2]
[330194556,1719103851463,-151.0,0.00019178,2]
[330194557,1719103851473,-387.133574,0.00019178,2]
[330194558,1719103851482,-387.133574,0.00019178,2]
[330194559,1719103851491,-387.133574,0.00019178,2]
[330194560,1719103851500,-387.133574,0.00019178,2]
[330194561,1719103851509,-151.0,0.00019178,2]
[330194562,1719103851519,-151.0,0.00019178,2]
[330194563,1719103851529,-151.0,0.00019178,2]
[330194564,1719103851539,-151.0,0.00019178,2]
[330194565,1719103851548,-387.133574,0.00019178,2]
[330194566,1719103851558,-387.133574,0.00019178,2]
[330194567,1719103851567,-387.133574,0.00019178,2]
[330194568,1719103851576,-387.13357,0.00019178,2]
[330194569,1719103851586,-151.0,0.00019178,2]
[330194570,1719103851595,-151.0,0.00019178,2]
[330194571,1719103851605,-151.0,0.00019178,2]
[330194572,1719103851616,-286.566126,0.00019178,2]
[330194573,1719103851627,-254.574261,0.00019178,2]
[330194574,1719103851637,-254.574261,0.00019178,2]
[330194575,1719103851647,-254.574261,0.00019178,2]
[330194576,1719103851656,-254.574261,0.00019178,2]
[330194577,1719103851666,-254.574261,0.00019178,2]
[330194578,1719103851675,-254.574261,0.00019178,2]
[330194579,1719103851686,-254.574261,0.00019178,2]
[330194580,1719103851696,-254.574269,0.00019178,2]
[330194581,1719103851705,-1058.586686,0.00019178,2]
[330194582,1719103851714,-1058.586686,0.00019178,2]
[330194583,1719103851724,-1058.586686,0.00019178,2]
[330194584,1719103851734,-1058.58668,0.00019178,2]
[330194585,1719103851744,-5613.309577,0.00019178,2]
[330194586,1719103851754,-5613.309577,0.00019178,2]
[330194587,1719103851765,-5613.309577,0.00019178,2]
[330194588,1719103851776,-5613.309576,0.00019178,2]
[330194589,1719103851786,-151.0,0.00019178,2]
[330194590,1719103851795,-151.0,0.00019178,2]
[330194591,1719103851805,-55000.0,0.00019178,2]
[330194592,1719103851815,-3149.5,0.00019178,2]
[330194593,1719103851825,-250.0,0.00019178,2]
[330194594,1719103851835,-300.0,0.00019178,2]
[330194595,1719103851845,-1000.0,0.00019199,2]
[330194596,1719103851855,-2034.0,0.000192,2]
[330194597,1719103851866,-10000.0,0.00019214,2]
[330194598,1719103851876,-151.0,0.00019214,2]
[330194599,1719103851886,-586.237885,0.00019214,2]
[330194600,1719103851896,-586.237885,0.00019214,2]
[330194601,1719103851905,-722.561294,0.00019214,2]
[330194602,1719103851914,-722.561294,0.00019214,2]
[330194603,1719103851923,-276.91589,0.00019214,2]
[330194604,1719103851934,-276.91589,0.00019214,2]
[330194605,1719103851943,-18899.80391905,0.00019264,2]
[330194606,1719103851952,-734.0,0.000193,2]
[330194607,1719103851961,-13667.60678862,0.0001935,2]
[330194608,1719103851971,-3820.50990184,0.0001935,2]
[330194609,1719103851980,-166.4,0.00019372,2]
[330194610,1719103851989,-216.180926,0.00019372,2]
[330194611,1719103851999,-821.93871,0.00019372,2]
[330194612,1719103852008,-621.191235,0.00019372,2]
[330194613,1719103852018,-216.180926,0.00019372,2]
[330194614,1719103852027,-821.93871,0.00019372,2]
[330194615,1719103852036,-621.191235,0.00019372,2]
[330194616,1719103852046,-151.0,0.00019372,2]
[330194617,1719103852056,-200.749225,0.00019372,2]
[330194618,1719103852067,-200.749225,0.00019372,2]
[330194619,1719103852078,-156.79225331,0.000194,2]
[330194620,1719103852088,-447.4,0.00019549,2]
[330194621,1719103852099,-450.0,0.00019694,2]
[330194622,1719103852109,-283.6,0.00019756,2]
[330194623,1719103852120,-18899.80391905,0.00019809,2]
[330194624,1719103852131,-776.15,0.00019811,2]
[330194625,1719103852142,-179.63,0.00019836,2]
[330194626,1719103852152,-155.0,0.00019849,2]
[330194627,1719103852162,-151.0,0.00019849,2]
[330194628,1719103852171,-447.4,0.00019862,2]
[330194629,1719103852182,-382.4172001,0.00019888,2]
[330194630,1719103852192,-151.0,0.00019889,2]
[330194631,1719103852201,-306.589048,0.00019889,2]
[330194632,1719103852211,-306.589048,0.00019889,2]
[330194633,1719103852221,-151.0,0.00019889,2]
[330194634,1719103852232,-359.92079,0.00019889,2]
[330194635,1719103852242,-303.10159,0.00019889,2]
[330194636,1719103852257,-303.10159,0.00019889,2]
[330194637,1719103852266,-248.924324,0.00019889,2]
[330194638,1719103852276,-248.924324,0.00019889,2]
[330194639,1719103852287,-151.0,0.00019889,2]
[330194640,1719103852297,-751.886012,0.00019889,2]
[330194641,1719103852306,-751.886012,0.00019889,2]
[330194642,1719103852316,-461.650784,0.00019889,2]
[330194643,1719103852325,-461.650784,0.00019889,2]
[330194644,1719103852338,-1087.267447,0.00019889,2]
[330194645,1719103852349,-216.180926,0.00019889,2]
[330194646,1719103852358,-821.93871,0.00019889,2]
[330194647,1719103852368,-1087.267447,0.00019889,2]
[330194648,1719103852377,-621.191235,0.00019889,2]
[330194649,1719103852388,-216.180926,0.00019889,2]
[330194650,1719103852397,-821.93871,0.00019889,2]
[330194651,1719103852406,-621.191235,0.00019889,2]
[330194652,1719103852416,-151.0,0.00019889,2]
[330194653,1719103852426,-200.749225,0.00019889,2]
[330194654,1719103852436,-200.749225,0.00019889,2]
[330194655,1719103852445,-151.0,0.00019889,2]
[330194656,1719103852455,-586.237885,0.00019889,2]
[330194657,1719103852465,-586.237891,0.00019889,2]
[330194658,1719103852474,-722.561294,0.00019889,2]
[330194659,1719103852484,-722.5613,0.00019889,2]
[330194660,1719103852494,-276.91589,0.00019889,2]
[330194661,1719103852504,-276.915892,0.00019889,2]
[330194662,1719103852514,-1271.0,0.00019889,2]
[330194663,1719103852523,-1653.0,0.00019889,2]
[330194664,1719103852533,-1830.0,0.00019889,2]
[330194665,1719103852542,-359.0,0.00019889,2]
[330194666,1719103852552,-447.0,0.00019889,2]
[330194667,1719103852561,-2410.0,0.00019889,2]
[330194668,1719103852572,-1304.0,0.00019889,2]
[330194669,1719103852581,-150.0,0.00019889,2]
[330194670,1719103852591,-1982.0,0.00019889,2]
[330194671,1719103852602,-547.0,0.00019889,2]
[330194672,1719103852613,-3198.0,0.00019889,2]
[330194673,1719103852622,-1196.0,0.00019889,2]
[330194674,1719103852632,-290.0,0.00019889,2]
[330194675,1719103852641,-38125.0,0.00019889,2]
[330194676,1719103852651,-5794.0,0.00019889,2]
[330194677,1719103852660,-5163.0,0.00019889,2]
[330194678,1719103852670,-1659.0,0.00019889,2]
[330194679,1719103852681,-151.0,0.000199,2]
[330194680,1719103852690,-11497.09427564,0.000199,2]
[330194681,1719103852700,-11497.09427563,0.000199,2]
[330194682,1719103852709,-11497.09427563,0.000199,2]
[330194683,1719103852719,-304.95856914,0.0002,2]
[330194684,1719103852728,-138944.79392484,0.0002,2]
[330194685,1719103852739,-3950.0,0.0002,2]
[330194686,1719103852749,-1277.72809184,0.0002,2]
[330194687,1719103852759,-151.0,0.0002,2]
[330194688,1719103852769,-376.71212658,0.0002,2]
[330194689,1719103852778,-306.44012122,0.0002,2]
[330194690,1719103852788,-2573.43552645,0.0002,2]
[330194691,1719103852798,-155.00000379,0.0002,2]
[330194692,1719103852807,-279.2927936,0.0002,2]
[330194693,1719103852817,-151.0,0.0002,2]
[330194694,1719103852827,-155.0,0.0002,2]
[330194695,1719103852837,-151.0,0.0002,2]
[330194696,1719103852846,-151.0,0.0002,2]
[330194697,1719103852856,-151.0,0.0002,2]
[330194698,1719103852866,-151.0,0.0002,2]
[330194699,1719103852878,-151.0,0.0002,2]
[330194700,1719103852888,-156.81522,0.0002,2]
[330194701,1719103852898,-151.0,0.0002,2]
[330194702,1719103852910,-306.589048,0.0002,2]
[330194703,1719103852921,-306.589048,0.0002,2]
[330194704,1719103852931,-257.491315,0.0002,2]
[330194705,1719103852941,-359.92079,0.0002,2]
[330194706,1719103852952,-303.10159,0.0002,2]
[330194707,1719103852963,-303.10159,0.0002,2]
[330194708,1719103852974,-248.924324,0.0002,2]
[330194709,1719103852986,-248.924324,0.0002,2]
[330194710,1719103852997,-151.0,0.0002,2]
[330194711,1719103853007,-751.886012,0.0002,2]
[330194712,1719103853018,-1420.94189128,0.0002,2]
[330194713,1719103853030,-751.886012,0.0002,2]
[330194714,1719103853041,-461.650784,0.0002,2]
[330194715,1719103853051,-461.650784,0.0002,2]
[330194716,1719103853061,-1087.267447,0.0002,2]
[330194717,1719103853072,-216.180926,0.0002,2]
[330194718,1719103853083,-821.93871,0.0002,2]
[330194719,1719103853093,-1087.267447,0.0002,2]
[330194720,1719103853102,-621.191235,0.0002,2]
[330194721,1719103853113,-216.180926,0.0002,2]
[330194722,1719103853123,-821.93871,0.0002,2]
[330194723,1719103853134,-621.191235,0.0002,2]
[330194724,1719103853144,-151.0,0.0002,2]
[330194725,1719103853154,-200.749225,0.0002,2]
[330194726,1719103853166,-200.749225,0.0002,2]
[330194727,1719103853175,-681.86808669,0.0002,2]
[330194728,1719103853186,-26155.47370479,0.0002,2]
[330194729,1719103853195,-1000.0,0.0002,2]
[330194730,1719103853205,-852.68,0.00020055,2]
[330194731,1719103853214,-855.89,0.00020055,2]
[330194732,1719103853224,-852.68,0.00020055,2]
[330194733,1719103853233,-852.68,0.00020055,2]
[330194734,1719103853243,-852.68,0.00020055,2]
[330194735,1719103853258,-404.34,0.00020055,2]
[330194736,1719103853268,-418.32,0.00020055,2]
[330194737,1719103853278,-13667.60678862,0.00020125,2]
[330194738,1719103853288,-3820.50990184,0.00020125,2]
[330194739,1719103853299,-2497.16,0.00020156,2]
[330194740,1719103853308,-447.4,0.00020175,2]
[330194741,1719103853318,-421.15,0.00020192,2]
[330194742,1719103853329,-550.0,0.00020242,2]
[330194743,1719103853339,-200.0,0.00020306,2]
[330194744,1719103853349,-200.0,0.00020306,2]
[330194745,1719103853359,-200.0,0.00020306,2]
[330194746,1719103853369,-200.0,0.00020306,2]
[330194747,1719103853379,-200.0,0.00020306,2]
[330194748,1719103853389,-200.0,0.00020306,2]
[330194749,1719103853399,-181.0,0.00020306,2]
[330194750,1719103853410,-18899.80391905,0.00020355,2]
[330194751,1719103853421,-150.0,0.00020466,2]
[330194752,1719103853432,-150.0,0.00020466,2]
[330194753,1719103853442,-150.0,0.00020466,2]
[330194754,1719103853452,-150.0,0.00020466,2]
[330194755,1719103853462,-150.0,0.00020466,2]
[330194756,1719103853473,-447.4,0.00020488,2]
[330194757,1719103853483,-216.180926,0.00020531,2]
[330194758,1719103853492,-821.93871,0.00020531,2]
[330194759,1719103853503,-621.191235,0.00020531,2]
[330194760,1719103853512,-216.180934,0.00020531,2]
[330194761,1719103853522,-821.938702,0.00020531,2]
[330194762,1719103853533,-621.191239,0.00020531,2]
[330194763,1719103853544,-151.0,0.00020531,2]
[330194764,1719103853555,-200.749225,0.00020531,2]
[330194765,1719103853567,-200.749224,0.00020531,2]
[330194766,1719103853576,-9580.0,0.00020531,2]
[330194767,1719103853586,-171.82,0.00020548,2]
[330194768,1719103853596,-20033.87,0.00020548,2]
[330194769,1719103853607,-508.35355463,0.0002058,2]
[330194770,1719103853618,-161.96,0.00020639,2]
[330194771,1719103853628,-650.0,0.0002079,2]
[330194772,1719103853638,-159.90982101,0.00020799,2]
[330194773,1719103853650,-400.1233,0.000208,2]
[330194774,1719103853662,-778.17029976,0.000208,2]
[330194775,1719103853671,-6781.7837,0.000208,2]
[330194776,1719103853682,-49779.8604,0.000208,2]
[330194777,1719103853691,-155.639262,0.000208,2]
[330194778,1719103853701,-151.0,0.000208,2]
[330194779,1719103853712,-151.0,0.000208,2]
[330194780,1719103853721,-151.0,0.000208,2]
[330194781,1719103853732,-151.0,0.000208,2]
[330194782,1719103853742,-151.0,0.000208,2]
[330194783,1719103853752,-262.517209,0.000208,2]
[330194784,1719103853763,-151.0,0.000208,2]
[330194785,1719103853773,-151.0,0.000208,2]
[330194786,1719103853784,-151.0,0.000208,2]
[330194787,1719103853970,-151.0,0.000208,2]
[330194788,1719103853980,-306.589048,0.000208,2]
[330194789,1719103853989,-306.589048,0.000208,2]
[330194790,1719103853998,-359.92079,0.000208,2]
[330194791,1719103854008,-359.92079,0.000208,2]
[330194792,1719103854018,-303.10159,0.000208,2]
[330194793,1719103854028,-303.10159,0.000208,2]
[330194794,1719103854037,-303.10159,0.000208,2]
[330194795,1719103854046,-303.10159,0.000208,2]
[330194796,1719103854055,-248.924324,0.000208,2]
[330194797,1719103854065,-248.924324,0.000208,2]
[330194798,1719103854075,-248.924324,0.000208,2]
[330194799,1719103854084,-248.924324,0.000208,2]
[330194800,1719103854094,-151.0,0.000208,2]
[330194801,1719103854103,-151.0,0.000208,2]
[330194802,1719103854113,-751.886012,0.000208,2]
[330194803,1719103854123,-751.886012,0.000208,2]
[330194804,1719103854132,-751.886012,0.000208,2]
[330194805,1719103854142,-461.650784,0.000208,2]
[330194806,1719103854152,-751.886012,0.000208,2]
[330194807,1719103854162,-461.650784,0.000208,2]
[330194808,1719103854171,-461.650784,0.000208,2]
[330194809,1719103854183,-461.650784,0.000208,2]
[330194810,1719103854193,-1087.267447,0.000208,2]
[330194811,1719103854203,-1087.267447,0.000208,2]
[330194812,1719103854212,-1087.267447,0.000208,2]
[330194813,1719103854222,-1087.267447,0.000208,2]
[330194814,1719103854232,-447.4,0.000208,2]
[330194815,1719103854241,-500.0,0.00020832,2]
[330194816,1719103854255,-200.0,0.00020832,2]
[330194817,1719103854264,-328.4026194,0.00020842,2]
[330194818,1719103854274,-328.4026194,0.00020842,2]
[330194819,1719103854284,-500.0,0.00020889,2]
[330194820,1719103854295,-1026.45644883,0.00020889,2]
[330194821,1719103854305,-1000.0,0.000209,2]
[330194822,1719103854315,-10000.0,0.000209,2]
[330194823,1719103854325,-18899.80391905,0.000209,2]
[330194824,1719103854338,-156.79225331,0.000209,2]
[330194825,1719103854349,-13667.60678862,0.000209,2]
[330194826,1719103854359,-207.98177739,0.000209,2]
[330194827,1719103854368,-329.80095471,0.000209,2]
[330194828,1719103854378,-3820.50990184,0.000209,2]
[330194829,1719103854388,-1000.0,0.000209,2]
[330194830,1719103854398,-177.82315198,0.000209,2]
[330194831,1719103854407,-151.0,0.0002091,2]
[330194832,1719103854417,-306.589048,0.0002091,2]
[330194833,1719103854427,-306.589048,0.0002091,2]
[330194834,1719103854438,-3458.68721002,0.00020936,2]
[330194835,1719103854447,-1160.68210149,0.00020936,2]
[330194836,1719103854456,-1000.0,0.00020944,2]
[330194837,1719103854466,-412.51372358,0.00020978,2]
[330194838,1719103854476,-500.0,0.0002099,2]
[330194839,1719103854486,-500.0,0.0002099,2]
[330194840,1719103854495,-500.0,0.0002099,2]
[330194841,1719103854506,-500.0,0.0002099,2]
[330194842,1719103854516,-500.0,0.0002099,2]
[330194843,1719103854526,-500.0,0.0002099,2]
[330194844,1719103854536,-500.0,0.0002099,2]
[330194845,1719103854546,-500.0,0.0002099,2]
[330194846,1719103854557,-600.0,0.0002099,2]
[330194847,1719103854567,-151.0,0.0002099,2]
[330194848,1719103854577,-151.0,0.0002099,2]
[330194849,1719103854587,-151.0,0.0002099,2]
[330194850,1719103854596,-151.0,0.0002099,2]
[330194851,1719103854606,-151.0,0.0002099,2]
[330194852,1719103854616,-210.26152,0.0002099,2]
[330194853,1719103854625,-151.0,0.0002099,2]
[330194854,1719103854635,-151.0,0.0002099,2]
[330194855,1719103854644,-172.656819,0.0002099,2]
[330194856,1719103854654,-151.0,0.0002099,2]
[330194857,1719103854663,-151.0,0.0002099,2]
[330194858,1719103854674,-306.589048,0.0002099,2]
[330194859,1719103854686,-306.589048,0.0002099,2]
[330194860,1719103854696,-359.920799,0.0002099,2]
[330194861,1719103854708,-303.10159,0.0002099,2]
[330194862,1719103854717,-303.101588,0.0002099,2]
[330194863,1719103854727,-248.924324,0.0002099,2]
[330194864,1719103854736,-248.924322,0.0002099,2]
[330194865,1719103854746,-751.886012,0.0002099,2]
[330194866,1719103854756,-751.886012,0.0002099,2]
[330194867,1719103854766,-461.650784,0.0002099,2]
[330194868,1719103854776,-461.650787,0.0002099,2]
[330194869,1719103854787,-1087.267447,0.0002099,2]
[330194870,1719103854796,-1087.267451,0.0002099,2]
[330194871,1719103854806,-8910.5265539,0.00020996,2]
[330194872,1719103854816,-2686.7998499,0.00020996,2]
[330194873,1719103854827,-741.4249448,0.00020996,2]
[330194874,1719103854836,-151.0,0.00020996,2]
[330194875,1719103854846,-151.0,0.00020996,2]
[330194876,1719103854856,-151.0,0.00020996,2]